[Event "Titled Tuesday Blitz July 25 Early 2023"]
[White "EdmundPlayer"]
[Black "Sariego Figueredo, Wilfredo"]
[BlackFideId "3500080"]
[WhiteElo "2295"]
[BlackElo "2204"]
[Result "0-1"]
[Round "8"]
[TimeControl "180+2"]
[Date "2023.07.25"]
[WhiteClock "0:00:00"]
[BlackClock "0:00:18"]
[Board "186"]

1. e4 {[%clk 0:02:57]}  c5 {[%clk 0:03:00]} 2. Nf3 {[%clk 0:02:56]}  a6 {[%clk 0:03:00]} 3. Nc3 {[%clk 0:02:53]}  Nc6 {[%clk 0:03:00]} 4. d4 {[%clk 0:02:52]}  cxd4 {[%clk 0:03:00]} 5. Nxd4 {[%clk 0:02:53]}  e5 {[%clk 0:03:00]} 6. Nde2 {[%clk 0:02:51]}  Bc5 {[%clk 0:02:59]} 7. g3 {[%clk 0:01:53]}  Qb6 {[%clk 0:02:55]} 8. Be3 {[%clk 0:01:49]}  Bxe3 {[%clk 0:02:53]} 9. fxe3 {[%clk 0:01:49]}  Nf6 {[%clk 0:02:44]} 10. Nd5 {[%clk 0:01:43]}  Nxd5 {[%clk 0:02:35]} 11. exd5 {[%clk 0:01:44]}  Ne7 {[%clk 0:02:32]} 12. Qd2 {[%clk 0:01:16]}  Qxb2 {[%clk 0:02:28]} 13. Rd1 {[%clk 0:01:13]}  d6 {[%clk 0:02:28]} 14. Nc3 {[%clk 0:01:10]}  O-O {[%clk 0:02:21]} 15. Bd3 {[%clk 0:01:00]}  Bh3 {[%clk 0:02:14]} 16. Rb1 {[%clk 0:00:57]}  Qa3 {[%clk 0:02:13]} 17. Rxb7 {[%clk 0:00:56]}  Ng6 {[%clk 0:01:51]} 18. Rb3 {[%clk 0:00:43]}  Qa5 {[%clk 0:01:44]} 19. Bf1 {[%clk 0:00:37]}  Bg4 {[%clk 0:01:41]} 20. Bg2 {[%clk 0:00:34]}  f5 {[%clk 0:01:24]} 21. O-O {[%clk 0:00:34]}  e4 {[%clk 0:01:14]} 22. h3 {[%clk 0:00:27]}  Bh5 {[%clk 0:01:14]} 23. Qd4 {[%clk 0:00:18]}  Ne5 {[%clk 0:01:12]} 24. Kh2 {[%clk 0:00:16]}  Bf3 {[%clk 0:00:55]} 25. Rf2 {[%clk 0:00:13]}  Bxg2 {[%clk 0:00:52]} 26. Kxg2 {[%clk 0:00:14]}  h5 {[%clk 0:00:44]} 27. Rf4 {[%clk 0:00:11]}  g6 {[%clk 0:00:28]} 28. Ne2 {[%clk 0:00:07]}  Qxa2 {[%clk 0:00:23]} 29. Rc3 {[%clk 0:00:05]}  Rfc8 {[%clk 0:00:17]} 30. Rxc8+ {[%clk 0:00:04]}  Rxc8 {[%clk 0:00:18]} 31. Rf2 {[%clk 0:00:02]}  Rxc2 {[%clk 0:00:16]} 32. Kf1 {[%clk 0:00:02]}  Qb1+ {[%clk 0:00:15]} 33. Kg2 {[%clk 0:00:02]}  Qb2 {[%clk 0:00:15]} 34. Qxb2 {[%clk 0:00:02]}  Rxb2 {[%clk 0:00:16]} 35. Nf4 {[%clk 0:00:01]}  Rxf2+ {[%clk 0:00:17]} 36. Kxf2 {[%clk 0:00:02]}  Kf7 {[%clk 0:00:17]} 37. Ne6 {[%clk 0:00:02]}  a5 {[%clk 0:00:17]} 38. Nc7 {[%clk 0:00:01]}  a4 {[%clk 0:00:18]} 39. Nb5 {[%clk 0:00:01]}  Nd3+ {[%clk 0:00:18]} 40. Ke2 {[%clk 0:00:01]}  Nb4 {[%clk 0:00:19]} 41. Nxd6+ {[%clk 0:00:01]}  Kf6 {[%clk 0:00:18]} 42. Nc4 {[%clk 0:00:00]}  Nxd5 {[%clk 0:00:18]} 0-1


[Site "https://www.chess.com"]

[Event "Titled Tuesday Blitz July 25 Early 2023"]
[White "Graham, Nathaniel"]
[Black "Ardila, Oscar Humberto"]
[WhiteFideId "2007983"]
[BlackFideId "4404742"]
[WhiteElo "1985"]
[BlackElo "2230"]
[Result "1-0"]
[Round "8"]
[TimeControl "180+2"]
[Date "2023.07.25"]
[WhiteClock "0:00:06"]
[BlackClock "0:00:53"]
[Board "189"]

1. Nf3 {[%clk 0:03:00]}  Nf6 {[%clk 0:02:59]} 2. c4 {[%clk 0:03:01]}  g6 {[%clk 0:02:59]} 3. g3 {[%clk 0:03:01]}  Bg7 {[%clk 0:02:59]} 4. Nc3 {[%clk 0:03:01]}  O-O {[%clk 0:03:00]} 5. Bg2 {[%clk 0:03:02]}  d6 {[%clk 0:03:01]} 6. O-O {[%clk 0:03:02]}  Nbd7 {[%clk 0:03:02]} 7. d3 {[%clk 0:03:01]}  e5 {[%clk 0:03:02]} 8. Rb1 {[%clk 0:03:00]}  Re8 {[%clk 0:03:02]} 9. Nd2 {[%clk 0:02:58]}  Nf8 {[%clk 0:03:03]} 10. b4 {[%clk 0:02:56]}  c6 {[%clk 0:03:03]} 11. b5 {[%clk 0:02:56]}  d5 {[%clk 0:03:04]} 12. Ba3 {[%clk 0:02:50]}  Be6 {[%clk 0:03:02]} 13. bxc6 {[%clk 0:02:35]}  bxc6 {[%clk 0:03:02]} 14. Qa4 {[%clk 0:02:24]}  Qd7 {[%clk 0:02:43]} 15. Bxf8 {[%clk 0:02:14]}  Bxf8 {[%clk 0:02:40]} 16. cxd5 {[%clk 0:02:15]}  Nxd5 {[%clk 0:02:36]} 17. Nxd5 {[%clk 0:02:10]}  Bxd5 {[%clk 0:02:36]} 18. Bxd5 {[%clk 0:02:06]}  Qxd5 {[%clk 0:02:36]} 19. Rfc1 {[%clk 0:02:05]}  Bh6 {[%clk 0:02:28]} 20. Ne4 {[%clk 0:02:01]}  Re6 {[%clk 0:02:06]} 21. Rc5 {[%clk 0:01:44]}  Qd7 {[%clk 0:01:59]} 22. Rxe5 {[%clk 0:01:37]}  Bg7 {[%clk 0:01:51]} 23. Nc5 {[%clk 0:01:16]}  Qe7 {[%clk 0:01:51]} 24. Rxe6 {[%clk 0:01:15]}  Qxc5 {[%clk 0:01:45]} 25. Rxc6 {[%clk 0:01:10]}  Qh5 {[%clk 0:01:42]} 26. Rc7 {[%clk 0:00:58]}  Qxe2 {[%clk 0:01:34]} 27. Rbb7 {[%clk 0:00:55]}  Rf8 {[%clk 0:01:34]} 28. Qf4 {[%clk 0:00:45]}  Qxd3 {[%clk 0:01:25]} 29. Rxa7 {[%clk 0:00:31]}  Qd1+ {[%clk 0:01:22]} 30. Kg2 {[%clk 0:00:30]}  Qd5+ {[%clk 0:01:22]} 31. Qf3 {[%clk 0:00:30]}  Qe6 {[%clk 0:01:21]} 32. h4 {[%clk 0:00:29]}  h5 {[%clk 0:01:21]} 33. Kg1 {[%clk 0:00:24]}  Bd4 {[%clk 0:01:17]} 34. Rab7 {[%clk 0:00:16]}  Qxa2 {[%clk 0:01:17]} 35. Kg2 {[%clk 0:00:10]}  Qe6 {[%clk 0:01:10]} 36. Rd7 {[%clk 0:00:09]}  Qa2 {[%clk 0:01:09]} 37. Rxd4 {[%clk 0:00:08]}  Qe6 {[%clk 0:01:08]} 38. Rdd7 {[%clk 0:00:08]}  Qa2 {[%clk 0:01:06]} 39. Qb3 {[%clk 0:00:07]}  Qe2 {[%clk 0:01:02]} 40. Rxf7 {[%clk 0:00:06]}  Qe4+ {[%clk 0:01:03]} 41. Rf3+ {[%clk 0:00:06]}  Kh8 {[%clk 0:01:01]} 42. Qc3+ {[%clk 0:00:07]}  Kg8 {[%clk 0:00:53]} 43. Qg7# {[%clk 0:00:06]} 1-0


[Site "https://www.chess.com"]

[Event "Titled Tuesday Blitz July 25 Early 2023"]
[White "Semenova, Alina"]
[Black "Voege, Tobias"]
[WhiteFideId "24113875"]
[BlackFideId "1270513"]
[WhiteElo "2076"]
[BlackElo "2602"]
[Result "0-1"]
[Round "8"]
[TimeControl "180+2"]
[Date "2023.07.25"]
[WhiteClock "0:01:39"]
[BlackClock "0:02:09"]
[Board "191"]

1. e4 {[%clk 0:03:00]}  e6 {[%clk 0:02:59]} 2. d4 {[%clk 0:02:57]}  d5 {[%clk 0:03:00]} 3. exd5 {[%clk 0:02:57]}  Nf6 {[%clk 0:02:58]} 4. dxe6 {[%clk 0:02:57]}  Bxe6 {[%clk 0:02:59]} 5. Nf3 {[%clk 0:02:56]}  c5 {[%clk 0:02:59]} 6. Be2 {[%clk 0:02:55]}  Nc6 {[%clk 0:02:59]} 7. c3 {[%clk 0:02:49]}  cxd4 {[%clk 0:02:57]} 8. Nxd4 {[%clk 0:02:50]}  Nxd4 {[%clk 0:02:55]} 9. Qxd4 {[%clk 0:02:50]}  Qxd4 {[%clk 0:02:53]} 10. cxd4 {[%clk 0:02:51]}  Bb4+ {[%clk 0:02:49]} 11. Bd2 {[%clk 0:02:51]}  Bxd2+ {[%clk 0:02:48]} 12. Nxd2 {[%clk 0:02:52]}  O-O-O {[%clk 0:02:48]} 13. Nf3 {[%clk 0:02:51]}  Kb8 {[%clk 0:02:44]} 14. O-O {[%clk 0:02:49]}  Nd5 {[%clk 0:02:38]} 15. Rfd1 {[%clk 0:02:48]}  Nf4 {[%clk 0:02:37]} 16. Bf1 {[%clk 0:02:48]}  Bg4 {[%clk 0:02:38]} 17. Rd2 {[%clk 0:02:38]}  Bxf3 {[%clk 0:02:34]} 18. gxf3 {[%clk 0:02:39]}  Rd6 {[%clk 0:02:35]} 19. Bc4 {[%clk 0:02:30]}  f6 {[%clk 0:02:27]} 20. Re1 {[%clk 0:02:29]}  Rhd8 {[%clk 0:02:26]} 21. d5 {[%clk 0:02:27]}  Kc7 {[%clk 0:02:22]} 22. Re7+ {[%clk 0:02:26]}  R6d7 {[%clk 0:02:22]} 23. d6+ {[%clk 0:01:45]}  Kc6 {[%clk 0:02:20]} 24. Rxd7 {[%clk 0:01:46]}  Rxd7 {[%clk 0:02:19]} 25. Rd4 {[%clk 0:01:46]}  g5 {[%clk 0:02:15]} 26. Bg8 {[%clk 0:01:39]}  Ne2+ {[%clk 0:02:09]} 0-1


[Site "https://www.chess.com"]

[Event "Titled Tuesday Blitz July 25 Early 2023"]
[White "Wisniowski, Natalie"]
[Black "Castella Garcia, Fausto"]
[WhiteFideId "30929261"]
[BlackFideId "3501922"]
[WhiteElo "2071"]
[BlackElo "2440"]
[Result "0-1"]
[Round "8"]
[TimeControl "180+2"]
[Date "2023.07.25"]
[WhiteClock "0:00:00"]
[BlackClock "0:01:17"]
[Board "192"]

1. e4 {[%clk 0:03:00]}  c5 {[%clk 0:02:57]} 2. d4 {[%clk 0:03:00]}  cxd4 {[%clk 0:02:56]} 3. c3 {[%clk 0:03:01]}  e5 {[%clk 0:02:57]} 4. cxd4 {[%clk 0:02:56]}  exd4 {[%clk 0:02:58]} 5. Qxd4 {[%clk 0:02:52]}  Nc6 {[%clk 0:02:58]} 6. Qd1 {[%clk 0:02:51]}  Nf6 {[%clk 0:02:58]} 7. Nc3 {[%clk 0:02:50]}  Bb4 {[%clk 0:02:59]} 8. Bd2 {[%clk 0:02:46]}  O-O {[%clk 0:02:56]} 9. Nf3 {[%clk 0:02:45]}  d5 {[%clk 0:02:55]} 10. exd5 {[%clk 0:02:37]}  Nxd5 {[%clk 0:02:36]} 11. Nxd5 {[%clk 0:02:26]}  Qxd5 {[%clk 0:02:35]} 12. Bxb4 {[%clk 0:02:14]}  Nxb4 {[%clk 0:02:34]} 13. Qxd5 {[%clk 0:02:10]}  Nxd5 {[%clk 0:02:35]} 14. Bd3 {[%clk 0:02:09]}  Re8+ {[%clk 0:02:34]} 15. Kd2 {[%clk 0:02:05]}  Rd8 {[%clk 0:02:23]} 16. Rad1 {[%clk 0:01:36]}  Nf4 {[%clk 0:02:14]} 17. Kc3 {[%clk 0:01:21]}  Bg4 {[%clk 0:02:12]} 18. Be4 {[%clk 0:01:07]}  Rdc8+ {[%clk 0:01:54]} 19. Kb3 {[%clk 0:01:02]}  f5 {[%clk 0:01:45]} 20. Bc2 {[%clk 0:00:23]}  Nxg2 {[%clk 0:01:40]} 21. Rd3 {[%clk 0:00:22]}  f4 {[%clk 0:01:31]} 22. Ne5 {[%clk 0:00:19]}  Be6+ {[%clk 0:01:23]} 23. Ka3 {[%clk 0:00:11]}  Rxc2 {[%clk 0:01:24]} 24. Rg1 {[%clk 0:00:04]}  Rxf2 {[%clk 0:01:23]} 25. Rd4 {[%clk 0:00:00]}  Re8 {[%clk 0:01:17]} 0-1


[Site "https://www.chess.com"]

[Event "Titled Tuesday Blitz July 25 Early 2023"]
[White "Goughfather"]
[Black "Vafin, Ayrat"]
[BlackFideId "4146530"]
[WhiteElo "2043"]
[BlackElo "2342"]
[Result "1-0"]
[Round "8"]
[TimeControl "180+2"]
[Date "2023.07.25"]
[WhiteClock "0:00:47"]
[BlackClock "0:00:17"]
[Board "193"]

1. d4 {[%clk 0:03:00]}  d5 {[%clk 0:02:59]} 2. Nc3 {[%clk 0:02:59]}  e6 {[%clk 0:02:58]} 3. e4 {[%clk 0:02:58]}  Nf6 {[%clk 0:02:55]} 4. exd5 {[%clk 0:02:56]}  Nxd5 {[%clk 0:02:54]} 5. Bd2 {[%clk 0:02:56]}  Be7 {[%clk 0:02:53]} 6. Nf3 {[%clk 0:02:53]}  O-O {[%clk 0:02:52]} 7. Bd3 {[%clk 0:02:52]}  b6 {[%clk 0:02:52]} 8. Qe2 {[%clk 0:02:50]}  Bb7 {[%clk 0:02:52]} 9. a3 {[%clk 0:02:40]}  Nd7 {[%clk 0:02:51]} 10. Ne4 {[%clk 0:02:40]}  c5 {[%clk 0:02:44]} 11. dxc5 {[%clk 0:02:37]}  Nxc5 {[%clk 0:02:41]} 12. Nxc5 {[%clk 0:02:32]}  Bxc5 {[%clk 0:02:42]} 13. O-O {[%clk 0:02:32]}  Nf6 {[%clk 0:02:33]} 14. Bc3 {[%clk 0:02:24]}  Re8 {[%clk 0:02:27]} 15. Rad1 {[%clk 0:02:18]}  Qe7 {[%clk 0:02:16]} 16. Ng5 {[%clk 0:02:17]}  h6 {[%clk 0:02:05]} 17. Bxf6 {[%clk 0:02:13]}  Qxf6 {[%clk 0:01:56]} 18. Ne4 {[%clk 0:02:13]}  Bxe4 {[%clk 0:01:29]} 19. Qxe4 {[%clk 0:02:10]}  Qxb2 {[%clk 0:01:27]} 20. a4 {[%clk 0:01:03]}  Qd4 {[%clk 0:01:10]} 21. Qh7+ {[%clk 0:00:59]}  Kf8 {[%clk 0:01:04]} 22. Bb5 {[%clk 0:00:55]}  Qf6 {[%clk 0:00:23]} 23. Qh8+ {[%clk 0:00:47]}  Ke7 {[%clk 0:00:17]} 24. Rd7# {[%clk 0:00:47]} 1-0


[Site "https://www.chess.com"]

[Event "Titled Tuesday Blitz July 25 Early 2023"]
[White "Vifleemskaia, Svetlana"]
[Black "Bogumil, Tatiana"]
[WhiteFideId "4129490"]
[BlackFideId "4110579"]
[WhiteElo "2314"]
[BlackElo "2022"]
[Result "1-0"]
[Round "8"]
[TimeControl "180+2"]
[Date "2023.07.25"]
[WhiteClock "0:02:30"]
[BlackClock "0:00:00"]
[Board "195"]

1. d4 {[%clk 0:02:53]}  Nf6 {[%clk 0:01:13]} 2. c4 {[%clk 0:02:52]}  c5 {[%clk 0:01:10]} 3. d5 {[%clk 0:02:51]}  b5 {[%clk 0:01:09]} 4. Nd2 {[%clk 0:02:50]}  d6 {[%clk 0:01:06]} 5. e4 {[%clk 0:02:50]}  bxc4 {[%clk 0:01:02]} 6. Bxc4 {[%clk 0:02:48]}  Nfd7 {[%clk 0:00:56]} 7. b3 {[%clk 0:02:43]}  Ne5 {[%clk 0:00:52]} 8. Bb2 {[%clk 0:02:42]}  Nxc4 {[%clk 0:00:37]} 9. Nxc4 {[%clk 0:02:43]}  Ba6 {[%clk 0:00:32]} 10. Nf3 {[%clk 0:02:36]}  Bxc4 {[%clk 0:00:20]} 11. bxc4 {[%clk 0:02:37]}  Qa5+ {[%clk 0:00:21]} 12. Qd2 {[%clk 0:02:36]}  Qxd2+ {[%clk 0:00:20]} 13. Kxd2 {[%clk 0:02:37]}  Nd7 {[%clk 0:00:18]} 14. Bc3 {[%clk 0:02:36]}  Nf6 {[%clk 0:00:17]} 15. Kd3 {[%clk 0:02:35]}  g6 {[%clk 0:00:14]} 16. h3 {[%clk 0:02:35]}  Bg7 {[%clk 0:00:14]} 17. Rab1 {[%clk 0:02:35]}  O-O {[%clk 0:00:14]} 18. Rb7 {[%clk 0:02:34]}  Rfe8 {[%clk 0:00:14]} 19. Rhb1 {[%clk 0:02:33]}  h6 {[%clk 0:00:12]} 20. g3 {[%clk 0:02:32]}  Nh5 {[%clk 0:00:01]} 21. a4 {[%clk 0:02:29]}  Bxc3 {[%clk 0:00:00]} 22. Kxc3 {[%clk 0:02:30]} 1-0


[Site "https://www.chess.com"]

[Event "Titled Tuesday Blitz July 25 Early 2023"]
[White "Lohani, Sujana"]
[Black "Hrescak, Ivana"]
[WhiteFideId "12311987"]
[BlackFideId "14613441"]
[WhiteElo "1934"]
[BlackElo "2129"]
[Result "0-1"]
[Round "8"]
[TimeControl "180+2"]
[Date "2023.07.25"]
[WhiteClock "0:00:00"]
[BlackClock "0:00:25"]
[Board "196"]

1. d4 {[%clk 0:01:02]}  d5 {[%clk 0:02:58]} 2. Nf3 {[%clk 0:01:03]}  Nf6 {[%clk 0:02:58]} 3. c4 {[%clk 0:01:04]}  c6 {[%clk 0:02:58]} 4. g3 {[%clk 0:01:04]}  Bg4 {[%clk 0:02:57]} 5. Bg2 {[%clk 0:01:05]}  dxc4 {[%clk 0:02:55]} 6. O-O {[%clk 0:01:04]}  e6 {[%clk 0:02:55]} 7. Ne5 {[%clk 0:01:00]}  Nbd7 {[%clk 0:02:44]} 8. Nxc4 {[%clk 0:00:59]}  Be7 {[%clk 0:02:40]} 9. Nc3 {[%clk 0:00:58]}  O-O {[%clk 0:02:40]} 10. Qc2 {[%clk 0:00:54]}  Rc8 {[%clk 0:02:20]} 11. e4 {[%clk 0:00:53]}  Nb6 {[%clk 0:02:18]} 12. Ne3 {[%clk 0:00:52]}  Qxd4 {[%clk 0:02:10]} 13. Nxg4 {[%clk 0:00:24]}  Nxg4 {[%clk 0:02:09]} 14. h3 {[%clk 0:00:21]}  Ne5 {[%clk 0:02:07]} 15. Be3 {[%clk 0:00:22]}  Qd3 {[%clk 0:02:07]} 16. Qc1 {[%clk 0:00:21]}  Rfd8 {[%clk 0:02:00]} 17. Rd1 {[%clk 0:00:20]}  Qc4 {[%clk 0:01:59]} 18. Qc2 {[%clk 0:00:20]}  Rxd1+ {[%clk 0:01:38]} 19. Rxd1 {[%clk 0:00:19]}  Rd8 {[%clk 0:01:38]} 20. Rxd8+ {[%clk 0:00:19]}  Bxd8 {[%clk 0:01:38]} 21. Qd2 {[%clk 0:00:18]}  Qd3 {[%clk 0:01:38]} 22. Qc1 {[%clk 0:00:17]}  Nec4 {[%clk 0:01:34]} 23. Bf1 {[%clk 0:00:17]}  Qd7 {[%clk 0:01:25]} 24. Ne2 {[%clk 0:00:15]}  Bf6 {[%clk 0:01:18]} 25. b3 {[%clk 0:00:11]}  Nxe3 {[%clk 0:01:15]} 26. Qxe3 {[%clk 0:00:11]}  h6 {[%clk 0:01:09]} 27. e5 {[%clk 0:00:09]}  Be7 {[%clk 0:01:09]} 28. Nc3 {[%clk 0:00:07]}  Bb4 {[%clk 0:00:45]} 29. Ne4 {[%clk 0:00:06]}  Qd5 {[%clk 0:00:40]} 30. f4 {[%clk 0:00:04]}  Nd7 {[%clk 0:00:32]} 31. Kh2 {[%clk 0:00:04]}  a5 {[%clk 0:00:27]} 32. Bc4 {[%clk 0:00:03]}  Qd1 {[%clk 0:00:27]} 33. Nf2 {[%clk 0:00:02]}  Qc2 {[%clk 0:00:26]} 34. Kg2 {[%clk 0:00:02]}  Bc5 {[%clk 0:00:25]} 35. Qf3 {[%clk 0:00:00]}  Qxa2 {[%clk 0:00:25]} 0-1


[Site "https://www.chess.com"]

[Event "Titled Tuesday Blitz July 25 Early 2023"]
[White "campochess"]
[Black "Hartikainen, Jarmo"]
[BlackFideId "503134"]
[WhiteElo "2139"]
[BlackElo "2085"]
[Result "1-0"]
[Round "8"]
[TimeControl "180+2"]
[Date "2023.07.25"]
[WhiteClock "0:02:39"]
[BlackClock "0:00:39"]
[Board "201"]

1. d4 {[%clk 0:03:00]}  d5 {[%clk 0:02:58]} 2. Bg5 {[%clk 0:02:59]}  h6 {[%clk 0:02:57]} 3. Bh4 {[%clk 0:02:59]}  c5 {[%clk 0:02:57]} 4. dxc5 {[%clk 0:02:57]}  Qa5+ {[%clk 0:02:57]} 5. Nc3 {[%clk 0:02:56]}  e6 {[%clk 0:02:43]} 6. e4 {[%clk 0:02:54]}  dxe4 {[%clk 0:02:37]} 7. b4 {[%clk 0:02:51]}  Qc7 {[%clk 0:02:30]} 8. Nb5 {[%clk 0:02:50]}  Qd7 {[%clk 0:02:27]} 9. Qxd7+ {[%clk 0:02:47]}  Kxd7 {[%clk 0:02:19]} 10. O-O-O+ {[%clk 0:02:47]}  Kc6 {[%clk 0:02:07]} 11. Nd4+ {[%clk 0:02:45]}  Kd7 {[%clk 0:00:51]} 12. Bb5+ {[%clk 0:02:41]}  Nc6 {[%clk 0:00:39]} 13. Nxc6+ {[%clk 0:02:39]} 1-0


[Site "https://www.chess.com"]

[Event "Titled Tuesday Blitz July 25 Early 2023"]
[White "Tari, Aryan"]
[Black "Kramnik, Vladimir"]
[WhiteFideId "1510045"]
[BlackFideId "4101588"]
[WhiteElo "2934"]
[BlackElo "3002"]
[Result "1-0"]
[Round "9"]
[TimeControl "180+2"]
[Date "2023.07.25"]
[WhiteClock "0:00:51"]
[BlackClock "0:00:00"]
[Board "4"]

1. e4 {[%clk 0:02:55]}  c5 {[%clk 0:02:58]} 2. Nc3 {[%clk 0:02:50]}  e6 {[%clk 0:02:57]} 3. d4 {[%clk 0:02:50]}  cxd4 {[%clk 0:02:56]} 4. Qxd4 {[%clk 0:02:50]}  Nc6 {[%clk 0:02:56]} 5. Qd3 {[%clk 0:02:51]}  a6 {[%clk 0:02:53]} 6. Qg3 {[%clk 0:02:43]}  b5 {[%clk 0:02:45]} 7. Bg5 {[%clk 0:02:43]}  Nf6 {[%clk 0:02:19]} 8. e5 {[%clk 0:02:16]}  b4 {[%clk 0:02:07]} 9. exf6 {[%clk 0:02:14]}  gxf6 {[%clk 0:02:07]} 10. Bd2 {[%clk 0:02:06]}  bxc3 {[%clk 0:02:06]} 11. Bxc3 {[%clk 0:02:07]}  d5 {[%clk 0:01:54]} 12. O-O-O {[%clk 0:02:06]}  e5 {[%clk 0:01:44]} 13. Qf3 {[%clk 0:02:02]}  Be6 {[%clk 0:01:33]} 14. Bc4 {[%clk 0:02:02]}  Bh6+ {[%clk 0:00:51]} 15. Kb1 {[%clk 0:02:01]}  O-O {[%clk 0:00:48]} 16. Bxd5 {[%clk 0:01:46]}  Nd4 {[%clk 0:00:44]} 17. Qg3+ {[%clk 0:01:34]}  Kh8 {[%clk 0:00:45]} 18. Bxe6 {[%clk 0:01:35]}  fxe6 {[%clk 0:00:41]} 19. Nf3 {[%clk 0:01:30]}  Qe7 {[%clk 0:00:08]} 20. Nxd4 {[%clk 0:01:28]}  exd4 {[%clk 0:00:07]} 21. Rxd4 {[%clk 0:01:29]}  Rab8 {[%clk 0:00:07]} 22. Rhd1 {[%clk 0:01:26]}  Rb7 {[%clk 0:00:07]} 23. Qd6 {[%clk 0:01:17]}  Qf7 {[%clk 0:00:04]} 24. Qxa6 {[%clk 0:01:15]}  Re7 {[%clk 0:00:03]} 25. Rd8 {[%clk 0:01:11]}  Ree8 {[%clk 0:00:03]} 26. R8d7 {[%clk 0:01:10]}  Qg6 {[%clk 0:00:03]} 27. g3 {[%clk 0:01:08]}  e5 {[%clk 0:00:02]} 28. a4 {[%clk 0:01:07]}  Bg7 {[%clk 0:00:02]} 29. a5 {[%clk 0:01:02]}  Qg4 {[%clk 0:00:02]} 30. Qd3 {[%clk 0:00:56]}  Qa4 {[%clk 0:00:01]} 31. Rb7 {[%clk 0:00:53]}  Rg8 {[%clk 0:00:00]} 32. h4 {[%clk 0:00:51]} 1-0


[Site "https://www.chess.com"]

[Event "Titled Tuesday Blitz July 25 Early 2023"]
[White "Terry, Renato"]
[Black "Iturrizaga Bonelli, Eduardo"]
[WhiteFideId "3803457"]
[BlackFideId "3901211"]
[WhiteElo "2966"]
[BlackElo "2927"]
[Result "0-1"]
[Round "9"]
[TimeControl "180+2"]
[Date "2023.07.25"]
[WhiteClock "0:00:00"]
[BlackClock "0:00:01"]
[Board "5"]

1. d4 {[%clk 0:03:00]}  Nf6 {[%clk 0:03:00]} 2. Nf3 {[%clk 0:03:01]}  g6 {[%clk 0:02:56]} 3. Bg5 {[%clk 0:03:01]}  Bg7 {[%clk 0:02:55]} 4. c3 {[%clk 0:03:01]}  d6 {[%clk 0:02:49]} 5. Nbd2 {[%clk 0:03:01]}  O-O {[%clk 0:02:48]} 6. e4 {[%clk 0:03:01]}  Nc6 {[%clk 0:02:48]} 7. Bb5 {[%clk 0:03:00]}  Bd7 {[%clk 0:02:46]} 8. O-O {[%clk 0:02:59]}  a6 {[%clk 0:02:46]} 9. Ba4 {[%clk 0:02:59]}  b5 {[%clk 0:02:46]} 10. Bb3 {[%clk 0:02:59]}  e5 {[%clk 0:02:46]} 11. Re1 {[%clk 0:02:53]}  h6 {[%clk 0:02:44]} 12. Bh4 {[%clk 0:02:53]}  Kh7 {[%clk 0:02:43]} 13. dxe5 {[%clk 0:02:32]}  dxe5 {[%clk 0:02:42]} 14. Nf1 {[%clk 0:02:29]}  Qe8 {[%clk 0:02:41]} 15. Bc2 {[%clk 0:02:22]}  Rd8 {[%clk 0:02:36]} 16. Qe2 {[%clk 0:02:16]}  Be6 {[%clk 0:02:26]} 17. Ne3 {[%clk 0:02:16]}  Rd6 {[%clk 0:02:20]} 18. a4 {[%clk 0:02:15]}  Qb8 {[%clk 0:02:18]} 19. axb5 {[%clk 0:02:11]}  axb5 {[%clk 0:02:19]} 20. b4 {[%clk 0:02:05]}  Nh5 {[%clk 0:02:18]} 21. Red1 {[%clk 0:01:57]}  Nf4 {[%clk 0:02:01]} 22. Qf1 {[%clk 0:01:54]}  Qb7 {[%clk 0:01:43]} 23. Nd2 {[%clk 0:01:50]}  g5 {[%clk 0:01:14]} 24. Bg3 {[%clk 0:01:49]}  Rfd8 {[%clk 0:01:11]} 25. Nb3 {[%clk 0:01:43]}  Rxd1 {[%clk 0:01:10]} 26. Rxd1 {[%clk 0:01:42]}  Rxd1 {[%clk 0:01:08]} 27. Qxd1 {[%clk 0:01:43]}  Bf8 {[%clk 0:01:04]} 28. Nd5 {[%clk 0:01:29]}  Qa7 {[%clk 0:00:58]} 29. h4 {[%clk 0:01:20]}  Kg6 {[%clk 0:00:49]} 30. Kh2 {[%clk 0:01:13]}  Bd6 {[%clk 0:00:46]} 31. Bxf4 {[%clk 0:00:55]}  gxf4 {[%clk 0:00:47]} 32. Nxf4+ {[%clk 0:00:53]}  exf4 {[%clk 0:00:47]} 33. e5+ {[%clk 0:00:54]}  Kg7 {[%clk 0:00:45]} 34. exd6 {[%clk 0:00:54]}  Qxf2 {[%clk 0:00:27]} 35. dxc7 {[%clk 0:00:49]}  Ne5 {[%clk 0:00:26]} 36. Qd4 {[%clk 0:00:38]}  Qxh4+ {[%clk 0:00:25]} 37. Kg1 {[%clk 0:00:37]}  Qe1+ {[%clk 0:00:26]} 38. Kh2 {[%clk 0:00:38]}  f6 {[%clk 0:00:17]} 39. Bd1 {[%clk 0:00:31]}  Qh4+ {[%clk 0:00:16]} 40. Kg1 {[%clk 0:00:31]}  Qe1+ {[%clk 0:00:16]} 41. Kh2 {[%clk 0:00:32]}  Qg3+ {[%clk 0:00:16]} 42. Kh1 {[%clk 0:00:30]}  f3 {[%clk 0:00:14]} 43. gxf3 {[%clk 0:00:17]}  Nxf3 {[%clk 0:00:14]} 44. Bxf3 {[%clk 0:00:15]}  Qxf3+ {[%clk 0:00:15]} 45. Kg1 {[%clk 0:00:16]}  Qg3+ {[%clk 0:00:15]} 46. Kh1 {[%clk 0:00:15]}  Qh3+ {[%clk 0:00:07]} 47. Kg1 {[%clk 0:00:15]}  Qg3+ {[%clk 0:00:07]} 48. Kh1 {[%clk 0:00:15]}  Qxc7 {[%clk 0:00:06]} 49. Nc5 {[%clk 0:00:12]}  Bf5 {[%clk 0:00:05]} 50. Kg2 {[%clk 0:00:11]}  h5 {[%clk 0:00:04]} 51. Qd5 {[%clk 0:00:06]}  Qf4 {[%clk 0:00:04]} 52. Qb7+ {[%clk 0:00:06]}  Kg6 {[%clk 0:00:03]} 53. Qxb5 {[%clk 0:00:06]}  Qd2+ {[%clk 0:00:03]} 54. Kg1 {[%clk 0:00:02]}  Qe3+ {[%clk 0:00:03]} 55. Kg2 {[%clk 0:00:01]}  Qh3+ {[%clk 0:00:02]} 56. Kf2 {[%clk 0:00:02]}  Qxc3 {[%clk 0:00:01]} 57. Qe8+ {[%clk 0:00:00]}  Kg5 {[%clk 0:00:01]} 0-1


[Site "https://www.chess.com"]